fUST/lending_fUST_20260516
["ID","MTS","AMOUNT","RATE_DAILY","PERIOD"]
[422394047,1778925836000,-1032.73260416,6.233e-05,7]
[422394044,1778925836000,-778.17259317,6.197e-05,7]
[422394043,1778925836000,-583.62944488,5.896e-05,7]
[422394054,1778925836000,-1493.00555666,6.262e-05,7]
[422394061,1778925845000,502.16586661,5.479e-05,7]
[422394060,1778925845000,167.3886222,5.479e-05,7]
[422394062,1778925845000,836.94311101,5.809e-05,7]
[422394065,1778925845000,334.7772444,5.479e-05,7]
[422394064,1778925845000,225.15369683,5.479e-05,7]
[422394067,1778925845000,1004.33173321,6.261e-05,7]
[422394063,1778925845000,669.55448881,5.507e-05,7]
[422394066,1778925845000,450.30739367,5.507e-05,7]
[422394069,1778925863000,-1167.25888975,6.951e-05,7]
[422394070,1778925863000,-923.6270563,6.982e-05,7]
[422394068,1778925863000,-1171.72035541,6.939e-05,7]
[422394071,1778925877000,-1361.80203805,7.629e-05,7]
[422394072,1778925877000,-1077.56489902,7.66e-05,7]
[422394073,1778925902000,294.98368942,5.479e-05,7]
[422394075,1778925905000,428.90254163,5.479e-05,7]
[422394074,1778925905000,165.27579856,5.479e-05,7]
[422394077,1778925906000,131.15485594,5.479e-05,7]
[422394076,1778925906000,167.57158637,5.479e-05,7]
[422394084,1778925961000,-325.72533772,5.479e-05,7]
[422394083,1778925961000,-335.14317274,5.479e-05,7]
[422394082,1778925961000,-539.13148954,5.479e-05,7]
[422394085,1778926018000,-151.0,5.479e-05,7]
[422394181,1778926233000,-1204.23062129,5.343e-05,2]
[422394179,1778926233000,-942.81962338,5.343e-05,2]
[422394278,1778926238000,-705.33400924,5.343e-05,2]
[422394270,1778926238000,-2118.66704675,5.343e-05,2]
[422394364,1778926239000,-3881.1054369,5.871e-05,2]
[422394334,1778926239000,-300.0,5.617e-05,2]
[422394336,1778926239000,-300.0,5.617e-05,2]
[422394338,1778926239000,-300.0,5.617e-05,2]
[422394328,1778926239000,-300.0,5.617e-05,2]
[422394367,1778926239000,-420.0,6.026e-05,2]
[422394340,1778926239000,-300.0,5.617e-05,2]
[422394326,1778926239000,-300.0,5.617e-05,2]
[422394330,1778926239000,-300.0,5.617e-05,2]
[422394343,1778926239000,-300.0,5.617e-05,2]
[422394345,1778926239000,-300.0,5.617e-05,2]
[422394349,1778926239000,-300.0,5.617e-05,2]
[422394361,1778926239000,-513.5520679,5.788e-05,2]
[422394359,1778926239000,-947.02441208,5.781e-05,7]
[422394363,1778926239000,-166.4964389,5.871e-05,2]
[422394332,1778926239000,-300.0,5.617e-05,2]
[422394347,1778926239000,-300.0,5.617e-05,2]
[422394324,1778926239000,-155.4852695,5.507e-05,2]
[422394298,1778926239000,-189.40488242,5.479e-05,7]
[422394315,1778926239000,-168.86527263,5.479e-05,7]
[422394281,1778926239000,-28.94869934,5.343e-05,2]
[422394283,1778926239000,-333.5757408,5.424e-05,2]
[422394289,1778926239000,-287.0,5.478e-05,2]
[422394291,1778926239000,-156.69324603,5.479e-05,2]
[422394285,1778926239000,-300.0,5.478e-05,2]
[422394293,1778926239000,-313.38649206,5.479e-05,2]
[422394295,1778926239000,-25.98942139,5.479e-05,7]
[422394297,1778926239000,-318.65371739,5.479e-05,7]
[422394307,1778926239000,-757.61952966,5.479e-05,7]
[422394353,1778926239000,-300.0,5.617e-05,2]
[422394311,1778926239000,-312.45876144,5.479e-05,7]
[422394309,1778926239000,-156.22938072,5.479e-05,7]
[422394313,1778926239000,-468.68814216,5.479e-05,7]
[422394302,1778926239000,-349.11133791,5.479e-05,7]
[422394305,1778926239000,-29.69842692,5.479e-05,7]
[422394320,1778926239000,-282.72962623,5.479e-05,7]
[422394322,1778926239000,-388.54150151,5.507e-05,2]
[422394317,1778926239000,-238.58816262,5.479e-05,7]
[422394355,1778926239000,-300.0,5.617e-05,2]
[422394287,1778926239000,-269.0,5.478e-05,2]
[422394351,1778926239000,-300.0,5.617e-05,2]
[422394412,1778926239000,-500.0,7.523e-05,2]
[422394411,1778926239000,-500.0,7.523e-05,2]
[422394414,1778926239000,-185.65332548,7.523e-05,2]
[422394416,1778926239000,-500.0,7.523e-05,2]
[422394420,1778926239000,-500.0,7.523e-05,2]
[422394418,1778926239000,-500.0,7.523e-05,2]
[422394424,1778926239000,-500.0,7.523e-05,2]
[422394422,1778926239000,-500.0,7.523e-05,2]
[422394427,1778926239000,-500.0,7.523e-05,2]
[422394429,1778926239000,-500.0,7.523e-05,2]
[422394426,1778926239000,-500.0,7.523e-05,2]
[422394435,1778926239000,-300.0,7.523e-05,2]
[422394431,1778926239000,-500.0,7.523e-05,2]
[422394439,1778926239000,-6006.88351959,7.524e-05,2]
[422394433,1778926239000,-350.0,7.523e-05,2]
[422394437,1778926239000,-25961.22365644,7.524e-05,2]
[422394368,1778926239000,-1136.42929449,6.233e-05,7]
[422394405,1778926239000,-500.0,7.523e-05,2]
[422394407,1778926239000,-549.93752221,7.523e-05,2]
[422394300,1778926239000,-568.21464725,5.479e-05,7]
[422394401,1778926239000,-500.0,7.523e-05,2]
[422394409,1778926239000,-328.38272887,7.523e-05,2]
[422394357,1778926239000,-600.0,5.728e-05,2]
[422394372,1778926239000,-327.0,6.629e-05,2]
[422394375,1778926239000,-1325.83417691,6.911e-05,7]
[422394385,1778926239000,-430.10221731,7.4e-05,2]
[422394386,1778926239000,-654.44652174,7.4e-05,2]
[422394392,1778926239000,-500.0,7.523e-05,2]
[422394379,1778926239000,-239.15709934,7.4e-05,2]
[422394376,1778926239000,-864.0,6.931e-05,2]
[422394371,1778926239000,-720.0,6.301e-05,2]
[422394390,1778926239000,-500.0,7.523e-05,2]
[422394394,1778926239000,-500.0,7.523e-05,2]
[422394396,1778926239000,-500.0,7.523e-05,2]
[422394382,1778926239000,-528.37757557,7.4e-05,2]
[422394380,1778926239000,-621.04733528,7.4e-05,2]
[422394399,1778926239000,-500.0,7.523e-05,2]
[422394398,1778926239000,-500.0,7.523e-05,2]
[422394403,1778926239000,-500.0,7.523e-05,2]
[422394388,1778926239000,-393.61937414,7.424e-05,2]
[422394479,1778926241000,-267.76179068,7.524e-05,2]
[422394478,1778926241000,-152.0,5.584e-05,7]
[422394513,1778926244000,-36049.93414243,7.524e-05,2]
[422394515,1778926244000,-1023.79763116,7.524e-05,2]
[422394517,1778926244000,-1107.9990059,7.524e-05,2]
[422394615,1778926244000,-69.00000011,7.524e-05,2]
[422394621,1778926244000,-77888.0,7.524e-05,2]
[422394642,1778926247000,-28253.46091168,7.524e-05,2]
[422394714,1778927431000,-1068.4430384,5.33e-05,2]
[422394725,1778927432000,-176.77789025,5.479e-05,7]
[422394723,1778927432000,-327.44660874,5.459e-05,2]
[422394727,1778927432000,-234.34407109,5.507e-05,7]
[422394729,1778927432000,-353.55578051,5.536e-05,7]
[422394731,1778927432000,-152.0,5.802e-05,7]
[422394739,1778927432000,-418.92896592,5.837e-05,7]
[422394737,1778927432000,-330.55159711,5.837e-05,7]
[422394735,1778927432000,-216.0,5.836e-05,2]
[422394741,1778927432000,-530.33367076,5.837e-05,7]
[422394721,1778927432000,-3931.5569616,5.33e-05,2]
[422394748,1778927432000,-343.64204673,7.459e-05,2]
[422394745,1778927432000,-300.0,5.953e-05,2]
[422394747,1778927432000,-264.8051348,7.326e-05,2]
[422394743,1778927432000,-151.0,5.873e-05,2]
[422394750,1778927432000,-42.74495159,7.459e-05,2]
[422394752,1778927432000,-151.0,8.345e-05,2]
[422394756,1778927432000,-717.44080339,8.71e-05,2]
[422394733,1778927432000,-151.0,5.815e-05,2]
[422394754,1778927432000,-647.0,8.71e-05,2]
[422394839,1778927438000,-194.91609658,8.71e-05,2]
[422394838,1778927438000,-1484.55919661,8.71e-05,2]
[422395020,1778927446000,-5742.83994073,9.8e-05,2]
[422395001,1778927446000,-1218.08390342,8.71e-05,2]
[422395002,1778927446000,-185.0,8.71e-05,2]
[422395003,1778927446000,-443.0,8.71e-05,2]
[422395005,1778927446000,-264.8051348,8.881e-05,2]
[422395008,1778927446000,-151.5,9.726e-05,2]
[422395009,1778927446000,-160.72261622,9.726e-05,2]
[422395004,1778927446000,-500.0,8.726e-05,2]
[422395011,1778927446000,-1951.80921516,9.8e-05,2]
[422395013,1778927446000,-481.15432523,9.8e-05,2]
[422395015,1778927446000,-1885.79311446,9.8e-05,2]
[422395007,1778927446000,-445.32738789,9.459e-05,2]
[422395006,1778927446000,-794.0,9.3e-05,2]
[422395016,1778927446000,-1183.47371984,9.8e-05,2]
[422395017,1778927446000,-1975.7214138,9.8e-05,2]
[422395018,1778927446000,-19877.21749699,9.8e-05,2]
[422395019,1778927446000,-765.18946592,9.8e-05,2]
[422395014,1778927446000,-1515.89408599,9.8e-05,2]
[422395264,1778928631000,-594.21577988,7.915e-05,2]
[422395256,1778928631000,-3938.91537964,7.124e-05,2]
[422395255,1778928631000,-251.5034752,7.053e-05,2]
[422395257,1778928631000,-1200.0,7.195e-05,2]
[422395259,1778928631000,-323.1539733,7.306e-05,2]
[422395258,1778928631000,-5000.0,7.196e-05,2]
[422395263,1778928631000,-529.6102698,7.891e-05,2]
[422395262,1778928631000,-300.0,7.638e-05,2]
[422395265,1778928631000,-605.78422012,7.915e-05,2]
[422395261,1778928631000,-300.0,7.638e-05,2]
[422395266,1778928631000,-189.23321281,8.269e-05,2]
[422395260,1778928631000,-265.16683539,7.527e-05,7]
[422395270,1778928632000,-185.0,8.632e-05,2]
[422395271,1778928632000,-443.0,8.632e-05,2]
[422395267,1778928632000,-420.0,8.402e-05,2]
[422395268,1778928632000,-1411.0,8.632e-05,2]
[422395269,1778928632000,-647.0,8.632e-05,2]
[422395274,1778928632000,-203.90946986,8.803e-05,2]
[422395272,1778928632000,-300.0,8.803e-05,2]
[422395275,1778928632000,-300.0,8.803e-05,2]
[422395273,1778928632000,-96.09053014,8.803e-05,2]
[422395278,1778928632000,-168.74171085,8.803e-05,2]
[422395279,1778928632000,-117.20753859,8.803e-05,2]
[422395276,1778928632000,-131.25828915,8.803e-05,2]
[422395401,1778928641000,-48.91991897,8.803e-05,2]
[422395399,1778928641000,-300.0,8.803e-05,2]
[422395397,1778928641000,-300.0,8.803e-05,2]
[422395395,1778928641000,-182.79246141,8.803e-05,2]
[422395406,1778928641000,-300.0,8.803e-05,2]
[422395404,1778928641000,-251.08008103,8.803e-05,2]
[422395405,1778928641000,-300.0,8.803e-05,2]
[422395408,1778928641000,-185.90703638,8.803e-05,2]
[422395407,1778928641000,-300.0,8.803e-05,2]
[422395410,1778928642000,-300.0,8.803e-05,2]
[422395411,1778928642000,-300.0,8.803e-05,2]
[422395409,1778928642000,-114.09296362,8.803e-05,2]
[422395412,1778928642000,-300.0,8.803e-05,2]
[422395416,1778928642000,-791.0,9.5e-05,2]
[422395414,1778928642000,-300.0,9.242e-05,2]
[422395415,1778928642000,-381.32168849,9.306e-05,2]
[422395417,1778928642000,-966.22793785,9.684e-05,2]
[422395413,1778928642000,-600.0,8.978e-05,2]
[422395428,1778928643000,-4895.9349,9.684e-05,2]
[422395427,1778928643000,-5741.8086363,9.684e-05,2]
[422395432,1778928646000,-540.92371165,9.684e-05,2]
[422395434,1778928646000,-337.2,9.684e-05,2]
[422395433,1778928646000,-7555.21288691,9.684e-05,2]
[422395435,1778928646000,-11362.37087009,9.684e-05,2]
[422395437,1778928646000,-448.3963019,9.684e-05,2]
[422395436,1778928646000,-64384.96069837,9.684e-05,2]
[422395440,1778928646000,-1389.92185208,9.688e-05,2]
[422395438,1778928646000,-3766.96405693,9.684e-05,2]
[422395439,1778928646000,-462.17920494,9.687e-05,2]
[422395465,1778929220000,323.154268,0.0001,60]
[422395466,1778929233000,5000.0,8e-05,30]
[422395467,1778929273000,-228.8216,8.186e-05,7]
[422395469,1778929290000,4814.81103,0.00012,120]
[422395468,1778929290000,-5000.0,8.375e-05,2]
[422395470,1778929306000,-457.6432,8.487e-05,7]
[422395472,1778929323000,-318.99207265,8.546e-05,2]
[422395473,1778929341000,-185.0,8.48e-05,2]
[422395474,1778929358000,-443.0,8.48e-05,2]
[422395475,1778929375000,-8830.40016049,9.123e-05,2]
[422395480,1778929524000,1586.50582698,0.00012,120]
[422395610,1778929838000,-264.4148305,8.555e-05,2]
[422395611,1778929838000,-178.5851695,8.555e-05,2]
[422395604,1778929838000,-300.0,7.751e-05,2]
[422395603,1778929838000,-300.0,7.751e-05,2]
[422395601,1778929838000,-300.0,7.751e-05,2]
[422395607,1778929838000,-340.0,8.359e-05,2]
[422395602,1778929838000,-300.0,7.751e-05,2]
[422395605,1778929838000,-300.0,7.751e-05,2]
[422395606,1778929838000,-600.0,7.751e-05,2]
[422395600,1778929838000,-300.0,7.751e-05,2]
[422395599,1778929838000,-300.0,7.751e-05,2]
[422395597,1778929838000,-300.0,7.751e-05,2]
[422395596,1778929838000,-300.0,7.751e-05,2]
[422395587,1778929838000,-5000.0,7.523e-05,2]
[422395592,1778929838000,-300.0,7.751e-05,2]
[422395595,1778929838000,-300.0,7.751e-05,2]
[422395594,1778929838000,-300.0,7.751e-05,2]
[422395609,1778929838000,-185.0,8.555e-05,2]
[422395591,1778929838000,-300.0,7.751e-05,2]
[422395588,1778929838000,-300.0,7.599e-05,2]
[422395589,1778929838000,-694.40277495,7.6e-05,2]
[422395590,1778929838000,-51095.90391894,7.6e-05,2]
[422395586,1778929838000,-312.6122312,7.486e-05,2]
[422395585,1778929838000,-3501.24224805,7.448e-05,2]
[422395598,1778929838000,-300.0,7.751e-05,2]
[422395608,1778929838000,-720.0,8.526e-05,2]
[422395593,1778929838000,-300.0,7.751e-05,2]
[422395624,1778929838000,-368.88243282,9.486e-05,2]
[422395632,1778929838000,-500.0,9.579e-05,2]
[422395635,1778929838000,-500.0,9.579e-05,2]
[422395634,1778929838000,-500.0,9.579e-05,2]
[422395631,1778929838000,-500.0,9.579e-05,2]
[422395633,1778929838000,-500.0,9.579e-05,2]
[422395637,1778929838000,-500.0,9.579e-05,2]
[422395626,1778929838000,-500.0,9.579e-05,2]
[422395628,1778929838000,-323.52544346,9.579e-05,2]
[422395636,1778929838000,-500.0,9.579e-05,2]
[422395630,1778929838000,-500.0,9.579e-05,2]
[422395627,1778929838000,-559.09206692,9.579e-05,2]
[422395638,1778929838000,-500.0,9.579e-05,2]
[422395639,1778929838000,-879.10260795,9.58e-05,2]
[422395625,1778929838000,-154.8226276,9.5e-05,2]
[422395623,1778929838000,-500.0,9.485e-05,2]
[422395614,1778929838000,-150.818,9.296e-05,2]
[422395629,1778929838000,-500.0,9.579e-05,2]
[422395615,1778929838000,-1286.51117546,9.3e-05,2]
[422395617,1778929838000,-3235.06639904,9.3e-05,2]
[422395616,1778929838000,-2889.78246473,9.3e-05,2]
[422395612,1778929838000,-500.0,9.099e-05,2]
[422395621,1778929838000,-5213.28150235,9.375e-05,2]
[422395620,1778929838000,-9740.71285665,9.375e-05,2]
[422395618,1778929838000,-3512.42956843,9.3e-05,2]
[422395622,1778929838000,-864.0,9.379e-05,2]
[422395619,1778929838000,-3201.10601654,9.3e-05,2]
[422395613,1778929838000,-10000.0,9.123e-05,2]
[422395653,1778929840000,-1532.90452827,9.58e-05,2]
[422395675,1778929843000,-1826.03086402,9.58e-05,2]
[422395674,1778929843000,-8806.98300026,9.58e-05,2]
[422395676,1778929843000,-857.52287274,9.58e-05,2]
[422395673,1778929843000,-5064.92389278,9.58e-05,2]
[422395672,1778929843000,-427.77401337,9.58e-05,2]
[422395700,1778929846000,-7113.5952742,9.58e-05,2]
[422395701,1778929846000,-90032.37052778,9.58e-05,2]
[422395703,1778929846000,-1298.55723155,9.58e-05,2]
[422395704,1778929846000,-1014.7,9.58e-05,2]
[422395702,1778929846000,-4549.94968314,9.58e-05,2]
[422395705,1778929846000,-6686.63529548,9.58e-05,2]
[422395964,1778931038000,-500.0,8.959e-05,2]
[422395942,1778931038000,-300.0,7.75e-05,2]
[422395946,1778931038000,-300.0,7.75e-05,2]
[422395943,1778931038000,-300.0,7.75e-05,2]
[422395947,1778931038000,-300.0,7.75e-05,2]
[422395944,1778931038000,-300.0,7.75e-05,2]
[422395948,1778931038000,-600.0,7.75e-05,2]
[422395945,1778931038000,-300.0,7.75e-05,2]
[422395953,1778931038000,-2636.66939201,8.26e-05,2]
[422395965,1778931038000,-500.0,8.959e-05,2]
[422395955,1778931038000,-720.0,8.525e-05,2]
[422395958,1778931038000,-185.0,8.6e-05,2]
[422395956,1778931038000,-3291.41339284,8.56e-05,2]
[422395954,1778931038000,-2980.75054109,8.46e-05,2]
[422395952,1778931038000,-2292.58824293,8.16e-05,2]
[422395957,1778931038000,-226.147,8.6e-05,2]
[422395940,1778931038000,-300.0,7.75e-05,2]
[422395951,1778931038000,-1948.50709398,7.96e-05,2]
[422395928,1778931038000,-5000.0,7.196e-05,2]
[422395929,1778931038000,-316.76296932,7.36e-05,2]
[422395930,1778931038000,-171.6162,7.627e-05,7]
[422395938,1778931038000,-300.0,7.75e-05,2]
[422395933,1778931038000,-300.0,7.75e-05,2]
[422395932,1778931038000,-300.0,7.749e-05,2]
[422395950,1778931038000,-1684.84381538,7.86e-05,2]
[422395939,1778931038000,-300.0,7.75e-05,2]
[422395936,1778931038000,-300.0,7.75e-05,2]
[422395935,1778931038000,-300.0,7.75e-05,2]
[422395937,1778931038000,-300.0,7.75e-05,2]
[422395931,1778931038000,-613.7974304,7.66e-05,2]
[422395941,1778931038000,-300.0,7.75e-05,2]
[422395949,1778931038000,-1149.32062289,7.76e-05,2]
[422395934,1778931038000,-300.0,7.75e-05,2]
[422395961,1778931038000,-500.0,8.959e-05,2]
[422395971,1778931038000,-500.0,8.959e-05,2]
[422395960,1778931038000,-3668.91283926,8.86e-05,2]
[422395981,1778931038000,-500.0,8.959e-05,2]
[422395993,1778931038000,-500.0,8.959e-05,2]
[422395983,1778931038000,-500.0,8.959e-05,2]
[422395987,1778931038000,-500.0,8.959e-05,2]
[422395986,1778931038000,-500.0,8.959e-05,2]
[422395991,1778931038000,-500.0,8.959e-05,2]
[422395992,1778931038000,-395.63185275,8.959e-05,2]
[422395985,1778931038000,-500.0,8.959e-05,2]
[422395988,1778931038000,-168.5821849,8.959e-05,2]
[422395990,1778931038000,-500.0,8.959e-05,2]
[422395989,1778931038000,-500.0,8.959e-05,2]
[422395995,1778931038000,-500.0,8.959e-05,2]
[422395996,1778931038000,-500.0,8.959e-05,2]
[422395966,1778931038000,-500.0,8.959e-05,2]
[422395984,1778931038000,-500.0,8.959e-05,2]
[422395994,1778931038000,-500.0,8.959e-05,2]
[422395970,1778931038000,-500.0,8.959e-05,2]
[422395977,1778931038000,-500.0,8.959e-05,2]
[422395962,1778931038000,-500.0,8.959e-05,2]
[422395963,1778931038000,-500.0,8.959e-05,2]
[422395968,1778931038000,-500.0,8.959e-05,2]
[422395978,1778931038000,-500.0,8.959e-05,2]
[422395973,1778931038000,-500.0,8.959e-05,2]
[422395982,1778931038000,-500.0,8.959e-05,2]
[422395980,1778931038000,-246.36031023,8.959e-05,2]
[422395974,1778931038000,-500.0,8.959e-05,2]
[422395975,1778931038000,-474.59750615,8.959e-05,2]
[422395976,1778931038000,-500.0,8.959e-05,2]
[422395967,1778931038000,-314.78018012,8.959e-05,2]
[422395972,1778931038000,-500.0,8.959e-05,2]
[422395969,1778931038000,-500.0,8.959e-05,2]
[422395979,1778931038000,-500.0,8.959e-05,2]
[422395959,1778931038000,-3324.83169018,8.66e-05,2]
[422395999,1778931039000,-49511.906036,8.96e-05,2]
[422395998,1778931039000,-4012.99398834,8.96e-05,2]
[422395997,1778931039000,-500.0,8.959e-05,2]
[422396003,1778931041000,-981.08142789,8.96e-05,2]
[422396021,1778931043000,-5167.93436883,8.96e-05,2]
[422396047,1778931046000,-1952.45,8.96e-05,2]
[422396046,1778931046000,-47138.84621761,8.96e-05,2]
[422396151,1778932038000,297460.95754276,0.00018,120]
[422396194,1778932232000,-300.0,8.192e-05,2]
[422396197,1778932232000,-300.0,8.192e-05,2]
[422396196,1778932232000,-300.0,8.192e-05,2]
[422396195,1778932232000,-300.0,8.192e-05,2]
[422396180,1778932232000,-1677.73068863,7.56e-05,2]
[422396193,1778932232000,-300.0,8.192e-05,2]
[422396191,1778932232000,-300.0,8.192e-05,2]
[422396186,1778932232000,-300.0,7.947e-05,2]
[422396189,1778932232000,-300.0,8.192e-05,2]
[422396192,1778932232000,-300.0,8.192e-05,2]
[422396188,1778932232000,-4786.62257754,8.133e-05,2]
[422396190,1778932232000,-300.0,8.192e-05,2]
[422396187,1778932232000,-4324.69240028,8.033e-05,2]
[422396185,1778932232000,-300.0,7.947e-05,2]
[422396184,1778932232000,-1977.21866326,7.933e-05,2]
[422396183,1778932232000,-1200.0,7.932e-05,2]
[422396182,1778932232000,-318.36057359,7.902e-05,2]
[422396181,1778932232000,-5000.0,7.636e-05,2]
[422396207,1778932232000,-4862.52275935,8.233e-05,2]
[422396200,1778932232000,-300.0,8.192e-05,2]
[422396210,1778932232000,-5230.34211009,8.433e-05,2]
[422396205,1778932232000,-300.0,8.192e-05,2]
[422396223,1778932232000,-39082.5,8.76e-05,2]
[422396222,1778932232000,-10458.55243871,8.76e-05,2]
[422396204,1778932232000,-300.0,8.192e-05,2]
[422396220,1778932232000,-500.0,8.759e-05,2]
[422396218,1778932232000,-3206.1807353,8.757e-05,2]
[422396217,1778932232000,-3592.6798864,8.757e-05,2]
[422396215,1778932232000,-1358.4323065,8.7e-05,2]
[422396216,1778932232000,-1423.35884553,8.7e-05,2]
[422396221,1778932232000,-1561.30451958,8.76e-05,2]
[422396214,1778932232000,-1222.81001218,8.7e-05,2]
[422396213,1778932232000,-572.47183098,8.7e-05,2]
[422396206,1778932232000,-300.0,8.192e-05,2]
[422396203,1778932232000,-300.0,8.192e-05,2]
[422396201,1778932232000,-300.0,8.192e-05,2]
[422396219,1778932232000,-254.95580349,8.759e-05,2]
[422396211,1778932232000,-480.14082209,8.433e-05,2]
[422396209,1778932232000,-600.0,8.355e-05,2]
[422396212,1778932232000,-185.0,8.528e-05,2]
[422396208,1778932232000,-5248.55275486,8.333e-05,2]
[422396242,1778932241000,-304.0,7.484e-05,2]
[422396240,1778932241000,-370.40503072,7.484e-05,2]
[422396285,1778932242000,-20665.42471379,8.76e-05,2]
[422396283,1778932242000,-42772.01148746,8.76e-05,2]
[422396280,1778932242000,-1600.67691427,8.76e-05,2]
[422396278,1778932242000,-33815.56251859,8.76e-05,2]
[422396276,1778932242000,-4325.59496928,7.484e-05,2]
[422396504,1778932243000,-382.74849313,8.76e-05,2]
[422396501,1778932243000,-1990.36528009,8.76e-05,2]
[422396808,1778932247000,-11141.18553589,8.76e-05,2]
[422396809,1778932247000,-7394.18664122,8.76e-05,2]
[422396827,1778932925000,19276.60969869,0.00018,120]
[422396870,1778933432000,-631.87264066,7.449e-05,2]
[422396907,1778933435000,558.36745925,0.00014135,120]
[422396908,1778933436000,558.36745925,0.00014213,120]
[422396913,1778933439000,-1162.64815397,7.6e-05,2]
[422396912,1778933439000,-3374.11249925,7.449e-05,2]
[422396924,1778933444000,-755.11298001,7.6e-05,2]
[422396985,1778933447000,-1045.81299024,7.6e-05,2]
[422396995,1778933828000,258.32209514,7.053e-05,2]
[422397009,1778934201000,158.2,0.00018,120]
[422397013,1778934392000,247.60468143,0.00013758,120]
[422397048,1778934631000,-329.83074482,6.127e-05,2]
[422397058,1778934631000,-0.36710935,6.252e-05,2]
[422397050,1778934631000,-223.25278783,6.189e-05,2]
[422397053,1778934631000,-594.54488708,6.189e-05,2]
[422397056,1778934631000,-663.42755693,6.189e-05,2]
[422397102,1778934638000,-180.918,6.843e-05,2]
[422397104,1778934638000,-2491.17694897,7.6e-05,2]
[422397103,1778934638000,-2539.08285289,7.6e-05,2]
[422397100,1778934638000,-4741.31079551,6.252e-05,2]
[422397101,1778934638000,-319.71879132,6.347e-05,2]
[422397112,1778934640000,-1433.55819506,7.6e-05,2]
[422397113,1778934640000,-2467.45075736,7.6e-05,2]
[422397115,1778934640000,-808.03,7.6e-05,2]
[422397114,1778934640000,-8032.56206851,7.6e-05,2]
[422397163,1778934646000,-4368.17214258,7.6e-05,2]
[422397164,1778934646000,-3143.62170793,7.6e-05,2]
[422397168,1778934673000,-1578.87818729,7.6e-05,2]
[422397671,1778935840000,-500.0,6.833e-05,2]
[422397685,1778935840000,-500.0,6.833e-05,2]
[422397683,1778935840000,-500.0,6.833e-05,2]
[422397687,1778935840000,-500.0,6.833e-05,2]
[422397700,1778935840000,-500.0,6.833e-05,2]
[422397696,1778935840000,-500.0,6.833e-05,2]
[422397689,1778935840000,-500.0,6.833e-05,2]
[422397707,1778935840000,-500.0,6.833e-05,2]
[422397692,1778935840000,-500.0,6.833e-05,2]
[422397704,1778935840000,-500.0,6.833e-05,2]
[422397690,1778935840000,-500.0,6.833e-05,2]
[422397677,1778935840000,-500.0,6.833e-05,2]
[422397658,1778935840000,-321.00861029,6.466e-05,2]
[422397669,1778935840000,-500.0,6.833e-05,2]
[422397681,1778935840000,-500.0,6.833e-05,2]
[422397679,1778935840000,-500.0,6.833e-05,2]
[422397673,1778935840000,-500.0,6.833e-05,2]
[422397667,1778935840000,-500.0,6.833e-05,2]
[422397665,1778935840000,-500.0,6.833e-05,2]
[422397663,1778935840000,-1200.0,6.832e-05,2]
[422397661,1778935840000,-300.0,6.832e-05,2]
[422397656,1778935840000,-5000.0,6.369e-05,2]
[422397654,1778935840000,-1753.6830432,6.305e-05,2]
[422397660,1778935840000,-180.918,6.697e-05,2]
[422397698,1778935840000,-500.0,6.833e-05,2]
[422397675,1778935840000,-500.0,6.833e-05,2]
[422397702,1778935840000,-351.62568872,6.833e-05,2]
[422397705,1778935840000,-500.0,6.833e-05,2]
[422397709,1778935840000,-312.23300495,6.833e-05,2]
[422397748,1778935840000,-500.0,6.833e-05,2]
[422397750,1778935840000,-500.0,6.833e-05,2]
[422397746,1778935840000,-500.0,6.833e-05,2]
[422397743,1778935840000,-500.0,6.833e-05,2]
[422397745,1778935840000,-500.0,6.833e-05,2]
[422397754,1778935840000,-500.0,6.833e-05,2]
[422397756,1778935840000,-472.90310413,6.833e-05,2]
[422397752,1778935840000,-500.0,6.833e-05,2]
[422397741,1778935840000,-500.0,6.833e-05,2]
[422397694,1778935840000,-500.0,6.833e-05,2]
[422397735,1778935840000,-500.0,6.833e-05,2]
[422397737,1778935840000,-500.0,6.833e-05,2]
[422397722,1778935840000,-500.0,6.833e-05,2]
[422397739,1778935840000,-500.0,6.833e-05,2]
[422397717,1778935840000,-500.0,6.833e-05,2]
[422397711,1778935840000,-500.0,6.833e-05,2]
[422397724,1778935840000,-500.0,6.833e-05,2]
[422397726,1778935840000,-500.0,6.833e-05,2]
[422397728,1778935840000,-500.0,6.833e-05,2]
[422397730,1778935840000,-500.0,6.833e-05,2]
[422397713,1778935840000,-500.0,6.833e-05,2]
[422397715,1778935840000,-500.0,6.833e-05,2]
[422397732,1778935840000,-500.0,6.833e-05,2]
[422397719,1778935840000,-500.0,6.833e-05,2]